bitfinex/quotes_ETHUSD_20250519
["timestamp","ask_amount","ask_price","bid_price","bid_amount"]
[1747681376333,4.03030791,2481.2,2481.1,11.0995]
[1747681376633,4.03030791,2481.2,2481.1,11.906]
[1747681377137,4.03023795,2481.3,2481.1,11.906]
[1747681377313,4.03030791,2481.2,2481.1,11.906]
[1747681378836,4.03030791,2481.2,2481.1,9.3155]
[1747681381933,12.57893433,2482.1,2481.2,8.0]
[1747681381934,4.57893433,2482.1,2481.2,8.0]
[1747681382136,4.03014548,2481.3,2481.2,8.0]
[1747681384446,4.03030791,2481.2,2481.1,9.3155]
[1747681384649,4.03030791,2481.2,2481.1,17.3155]
[1747681385043,4.03030791,2481.2,2481.1,20.78665]
[1747681385718,4.03030791,2481.2,2481.1,9.3155]
[1747681389114,4.02933354,2481.8,2481.1,9.3155]
[1747681389115,4.02864357,2482.3,2481.3,0.8229]
[1747681389319,4.02988588,2481.5,2481.3,8.8229]
[1747681389533,4.02998307,2481.4,2481.3,10.55609]
[1747681389822,4.02985296,2481.5,2481.3,10.55609]
[1747681390016,4.02998307,2481.4,2481.3,10.55609]
[1747681390220,4.0299096,2481.5,2481.3,10.55609]
[1747681391159,4.02998307,2481.4,2481.3,10.55609]
[1747681391459,4.02998307,2481.4,2481.1,0.1]
[1747681391639,4.03030791,2481.2,2481.1,0.8635]
[1747681391842,4.03030791,2481.2,2481.1,8.511]
[1747681394021,4.85060791,2481.2,2481.1,8.511]
[1747681394859,5.40060791,2481.2,2481.1,8.511]
[1747681395163,4.0319329,2480.2,2480.1,0.1]
[1747681395323,4.0319329,2480.2,2480.1,8.493]
[1747681395658,5.08123973,2480.2,2480.1,0.1]
[1747681395859,5.87023973,2480.2,2480.1,0.1]
[1747681396361,5.32023973,2480.2,2480.1,0.1]
[1747681396858,5.87023973,2480.2,2480.1,0.1]
[1747681401180,5.32023973,2480.2,2480.1,0.1]
[1747681401473,5.87023973,2480.2,2480.1,0.1]
[1747681402251,13.87023973,2480.2,2480.1,0.1]
[1747681402667,5.38225921,2479.2,2479.1,0.1]
[1747681402844,5.37048513,2479.2,2479.1,0.1]
[1747681403047,4.83225921,2479.2,2479.1,0.1]
[1747681403643,4.03355921,2479.2,2479.1,8.496]
[1747681403849,4.03341403,2479.3,2479.1,8.496]
[1747681404049,0.8157,2480.1,2479.3,0.7982]
[1747681404247,4.0328399,2479.7,2479.3,0.7982]
[1747681404480,4.03307118,2479.5,2479.4,0.48316783]
[1747681404682,4.03227115,2480.0,2479.3,0.7982]
[1747681404989,4.03323384,2479.4,2479.3,0.7982]
[1747681405405,4.03353735,2479.3,2479.1,0.1]
[1747681405568,4.03353735,2479.3,2479.2,8.397]
[1747681409681,4.03339652,2479.3,2479.2,8.397]
[1747681409883,4.03339652,2479.3,2479.2,9.2467]
[1747681410067,4.03339652,2479.3,2479.2,8.397]
[1747681411201,0.8157,2479.8,2479.2,8.397]
[1747681411410,4.03317692,2479.5,2479.3,0.791]
[1747681411633,4.03323384,2479.4,2479.3,8.791]
[1747681411793,4.03323384,2479.4,2479.3,8.0]
[1747681412707,4.03323384,2479.4,2479.2,8.397]
[1747681412708,4.03339652,2479.3,2479.2,8.397]
[1747681413109,4.03336685,2479.4,2479.2,8.397]
[1747681413286,4.03339652,2479.3,2479.2,8.397]
[1747681413809,4.03339652,2479.3,2479.2,9.32384]
[1747681414589,0.752,2480.1,2479.2,9.32384]
[1747681414903,4.03225806,2480.0,2479.3,0.8215]
[1747681415114,1.08730321,2480.1,2479.3,0.8215]
[1747681415115,4.03290875,2479.6,2479.3,0.8215]
[1747681415316,4.03323384,2479.4,2479.3,0.8215]
[1747681415523,4.03323384,2479.4,2479.3,1.846034]
[1747681415724,4.03314409,2479.5,2479.3,1.846034]
[1747681415927,4.03323384,2479.4,2479.3,1.846034]
[1747681416629,4.03323384,2479.4,2479.3,0.8215]
[1747681417196,4.03310751,2479.5,2479.3,0.8215]
[1747681417197,4.03316073,2479.5,2479.3,0.8215]
[1747681417397,4.03312474,2479.5,2479.3,0.8215]
[1747681417719,4.03276818,2479.7,2479.1,8.1]
[1747681417923,4.03307118,2479.5,2479.4,8.398]
[1747681418122,4.03297398,2479.6,2479.4,8.398]
[1747681418312,4.03307118,2479.5,2479.4,8.398]
[1747681418507,4.03304706,2479.6,2479.4,8.398]
[1747681418716,4.03307118,2479.5,2479.4,8.398]
[1747681419026,4.0326978,2479.8,2479.4,8.398]
[1747681419193,0.8183,2480.4,2479.6,0.7869]
[1747681419392,4.03233596,2480.0,2479.6,0.7869]
[1747681421127,0.8183,2480.4,2479.6,0.7869]
[1747681421330,4.03250404,2479.9,2479.6,0.7869]
[1747681421532,4.03249803,2479.9,2479.6,0.7869]
[1747681421831,4.03258327,2479.8,2479.7,8.398]
[1747681422127,4.03244392,2479.9,2479.7,8.398]
[1747681422703,4.0323126,2480.0,2479.7,8.398]
[1747681422903,4.03247734,2479.9,2479.7,9.71990735]
[1747681423434,4.03247734,2479.9,2479.8,17.411]
[1747681423630,4.0323126,2480.0,2479.8,17.411]
[1747681423631,4.03232265,2480.0,2479.8,17.411]
[1747681423850,4.03216086,2480.1,2479.9,0.8075]
[1747681424133,4.03225806,2480.0,2479.9,0.8075]
[1747681424699,4.03216539,2480.1,2479.9,0.8075]
[1747681424900,4.03225806,2480.0,2479.9,0.8075]
[1747681425109,4.03242066,2479.9,2479.8,17.411]
[1747681425314,4.03242066,2479.9,2479.8,25.797]
[1747681425546,4.03079527,2480.9,2479.8,27.21038026]
[1747681425732,4.03128275,2480.6,2479.8,27.21038026]
[1747681426050,4.03225886,2480.0,2479.8,27.21038026]
[1747681426216,4.0323173,2480.0,2479.8,27.21038026]
[1747681426416,4.03242066,2479.9,2479.8,25.797]
[1747681428561,4.85432066,2479.9,2479.8,8.386]
[1747681429550,4.85185921,2479.2,2479.1,0.1]
[1747681429955,4.03348587,2479.3,2479.1,0.1]
[1747681430161,0.82,2479.8,2479.3,8.0]
[1747681430363,4.03234808,2480.0,2479.4,2.4656]
[1747681430660,4.03308853,2479.5,2479.3,8.0]
[1747681430860,4.03323384,2479.4,2479.3,8.0]
[1747681431233,4.03323384,2479.4,2479.2,8.385]
[1747681431234,4.03339652,2479.3,2479.2,8.385]
[1747681432365,4.03323384,2479.4,2479.3,8.0]
[1747681432661,4.03264704,2479.8,2479.3,8.7717]
[1747681432862,4.79219753,2480.2,2479.3,16.67511013]
[1747681433064,4.0327587,2479.7,2479.3,12.64173478]
[1747681433265,4.03269286,2479.8,2479.3,16.67504889]
[1747681433457,4.03251075,2479.9,2479.5,8.0]
[1747681433667,4.03260489,2479.8,2479.4,8.0]
[1747681433984,4.03290853,2479.6,2479.5,1.66750497]
[1747681434632,4.03209548,2480.1,2479.6,8.0]
[1747681434938,4.03128275,2480.6,2479.8,8.0]
[1747681435163,0.46640715,2480.8,2480.2,8.0]
[1747681435164,4.49738488,2480.8,2480.2,8.0]
[1747681435353,4.0316078,2480.4,2480.3,26.597]
[1747681435550,4.0316078,2480.4,2480.3,25.797]
[1747681435753,4.03112024,2480.7,2480.3,25.797]
[1747681435988,0.46640715,2480.8,2480.3,25.797]
[1747681436287,0.46640715,2480.8,2480.3,33.797]
[1747681436288,4.0316078,2480.4,2480.3,33.797]
[1747681437356,0.80171036,2480.8,2480.4,8.0]
[1747681437557,0.33530321,2480.7,2480.4,8.0]
[1747681437758,4.0313617,2480.6,2480.4,8.0]
[1747681438093,0.7653,2480.4,2479.1,0.1]
[1747681438266,0.7653,2480.2,2479.1,0.1]
[1747681438588,4.03355921,2479.2,2479.1,1.0305]
[1747681438763,4.03355921,2479.2,2479.1,0.1]
[1747681439890,0.7653,2479.6,2479.1,0.1]
[1747681440396,4.03340194,2479.3,2479.1,0.1]
[1747681440784,0.7653,2479.6,2479.1,8.1]
[1747681440967,4.03258327,2479.8,2479.1,9.7485]
[1747681441167,4.03351784,2479.3,2479.1,9.7485]
[1747681441372,4.03351784,2479.3,2479.1,8.1]
[1747681441584,4.03325075,2479.4,2479.1,8.1]
[1747681441782,0.7653,2479.9,2479.1,8.1]
[1747681441989,4.03268439,2479.8,2479.3,4.03339441]
[1747681442189,4.03268439,2479.8,2479.4,17.41]
[1747681442389,4.03268439,2479.8,2479.5,8.386]
[1747681442601,4.03290853,2479.6,2479.5,8.386]
[1747681443486,4.03271395,2479.8,2479.5,8.386]
[1747681443797,4.03229985,2480.0,2479.5,12.41899844]
[1747681444005,4.03229985,2480.0,2479.6,8.0]
[1747681444168,4.83566258,2480.5,2479.8,8.8173]
[1747681444369,4.03228895,2480.0,2479.8,0.8173]
[1747681444697,4.0316078,2480.4,2479.6,8.0]
[1747681444897,4.03112024,2480.7,2479.6,8.29827278]
[1747681445200,4.03139209,2480.6,2480.1,4.0320846]
[1747681445401,4.03139209,2480.6,2480.3,8.0]
[1747681445573,4.03149549,2480.5,2480.4,17.41]
[1747681445779,4.03137015,2480.6,2480.4,17.41]
[1747681446181,4.03108268,2480.8,2480.6,0.8173]
[1747681446497,4.03108268,2480.8,2480.7,8.385]
[1747681446901,4.03089496,2480.9,2480.7,8.385]
[1747681447070,0.8042,2481.5,2480.6,0.8173]
[1747681447071,4.03103318,2480.8,2480.6,0.8173]
[1747681447273,4.03128275,2480.6,2480.4,17.41]
[1747681447500,4.03128275,2480.6,2480.5,8.385]
[1747681451390,4.03045591,2481.2,2480.5,8.385]
[1747681451717,4.03087043,2480.9,2480.5,8.385]
[1747681451914,4.03087043,2480.9,2480.6,8.0]
[1747681452299,4.03042608,2481.2,2480.7,4.03105252]
[1747681452981,4.03083848,2480.9,2480.6,9.98175107]
[1747681453314,4.02965828,2481.6,2480.6,9.98175107]
[1747681453315,4.03102869,2480.8,2480.6,9.98175107]
[1747681453515,4.03102869,2480.8,2480.6,8.0]
[1747681453694,4.02965828,2481.6,2480.6,8.0]
[1747681454018,4.03080405,2480.9,2480.6,8.0]
[1747681454213,4.03095994,2480.8,2480.6,8.0]
[1747681454425,4.03112024,2480.7,2480.6,8.0]
[1747681454623,4.03103921,2480.8,2480.6,8.0]
[1747681454822,4.03103921,2480.8,2480.7,16.395]
[1747681455129,4.03086268,2480.9,2480.7,16.395]
[1747681455427,4.03095775,2480.8,2480.7,8.0]
[1747681455629,4.03027761,2481.3,2480.9,8.8149]
[1747681455808,0.1,2481.9,2480.9,0.8149]
[1747681456115,4.02990157,2481.5,2481.1,8.0]
[1747681456307,4.02933937,2481.8,2480.9,12.84562855]
[1747681456503,4.03009592,2481.4,2480.9,12.84562855]
[1747681456703,4.03004231,2481.4,2481.0,10.12396285]
[1747681456903,4.02984921,2481.5,2481.0,10.12396285]
[1747681457104,0.1,2481.9,2481.1,0.7949]
[1747681457318,0.1,2481.9,2481.3,8.0]
[1747681457521,0.1,2481.9,2481.5,8.0]
[1747681457691,0.1,2481.9,2481.6,7.48890661]
[1747681457886,0.1,2481.9,2481.7,4.02947811]
[1747681458103,0.1,2481.9,2481.8,0.8297]
[1747681458622,0.1,2481.9,2481.8,1.13123832]
[1747681459089,0.1,2481.9,2481.8,9.13123832]
[1747681459285,0.1,2481.9,2481.8,33.21075427]
[1747681459583,0.1,2481.9,2481.8,37.24008781]
[1747681460006,0.1,2481.9,2481.8,17.13296081]
[1747681460233,0.1,2481.9,2481.8,41.20448081]
[1747681460430,0.1,2481.9,2481.8,32.33764381]
[1747681460951,0.1,2481.9,2481.8,32.54048372]
[1747681461249,0.1,2481.9,2481.8,30.37658572]
[1747681461749,0.8732,2482.9,2481.8,30.37658572]
[1747681461750,0.1,2482.9,2482.1,0.8062]
[1747681462046,4.12768428,2482.9,2482.3,8.0]
[1747681462346,4.02779126,2482.8,2482.5,8.0]
[1747681462517,0.1,2482.9,2482.5,8.0]
[1747681462727,4.12443222,2482.9,2482.5,8.0]
[1747681463051,4.02796844,2482.7,2482.5,8.0]
[1747681463254,4.02772319,2482.8,2482.5,8.0]
[1747681463551,4.02771064,2482.8,2482.7,8.0]
[1747681463857,0.09681996,2482.9,2482.7,17.1506]
[1747681464352,0.09681996,2482.9,2482.8,12.02771064]
[1747681464562,0.09681996,2482.9,2482.8,41.28911564]
[1747681464854,0.09681996,2482.9,2482.8,37.01825164]
[1747681465015,0.09681996,2482.9,2482.8,41.11644434]
[1747681465230,4.02618477,2483.8,2482.8,41.11644434]
[1747681465231,4.02639169,2483.7,2483.0,4.02733822]
[1747681465427,4.02642143,2483.6,2483.2,12.02705865]
[1747681465631,4.02642143,2483.6,2483.4,8.0]
[1747681466268,0.1,2483.9,2483.4,8.0]
[1747681466446,4.02625115,2483.7,2483.6,8.0]
[1747681467355,0.1,2483.9,2483.7,0.7596]
[1747681467554,0.1,2483.9,2483.8,16.387]
[1747681467758,4.12592696,2483.9,2483.8,16.387]
[1747681467947,0.1,2483.9,2483.8,16.387]
[1747681468864,0.1,2483.9,2483.8,18.0257]
[1747681469072,0.1,2483.9,2483.8,22.05178905]
[1747681469371,0.1,2483.9,2483.8,28.57694805]
[1747681470071,0.1,2484.9,2484.2,4.0253417]
[1747681470371,4.02479137,2484.7,2484.4,8.0]
[1747681470536,4.02479137,2484.7,2484.4,11.3779]
[1747681471035,4.02481901,2484.6,2484.4,11.3779]
[1747681471238,4.02511672,2484.4,2484.3,17.392]
[1747681471561,4.02511672,2484.4,2484.3,33.777]
[1747681473970,4.02511672,2484.4,2484.3,25.776]
[1747681474194,4.85821672,2484.4,2484.3,25.776]
[1747681476315,4.02511672,2484.4,2484.3,25.776]
[1747681479383,4.02511672,2484.4,2484.3,33.776]
[1747681479591,4.02502488,2484.5,2484.3,29.9624]
[1747681480669,4.02508171,2484.5,2484.3,29.9624]
[1747681480871,4.02506616,2484.5,2484.3,34.5848]
[1747681481067,4.02506616,2484.5,2484.4,8.0]
[1747681481865,0.1,2484.9,2484.4,8.0]
[1747681482179,4.84645471,2484.5,2484.4,8.0]
[1747681482395,4.84645471,2484.5,2484.4,16.382]
[1747681485285,4.84645471,2484.5,2484.4,8.382]
[1747681485486,6.13604628,2484.5,2484.4,8.382]
[1747681485884,4.02511672,2484.4,2484.3,17.392]
[1747681486196,5.39661672,2484.4,2484.3,25.759]
[1747681486380,5.39661672,2484.4,2482.9,6.034]
[1747681486381,4.02625115,2483.7,2483.6,17.38]
[1747681486691,4.02625115,2483.7,2483.6,25.747]
[1747681489209,4.02550694,2484.2,2483.7,4.0262221]
[1747681489533,4.77569572,2484.3,2483.7,8.0]
[1747681489729,0.7503,2484.3,2483.7,8.0]
[1747681490042,4.02567716,2484.1,2483.7,8.0]
[1747681490340,4.02577432,2484.0,2483.9,8.0]
[1747681491148,4.02565791,2484.1,2483.9,8.0]
[1747681491441,4.0256878,2484.1,2483.9,8.0]
[1747681492213,4.02537378,2484.3,2483.9,8.0]
[1747681492551,4.02537378,2484.3,2484.0,1.59245092]
[1747681492845,4.02537378,2484.3,2484.1,8.367]
[1747681493054,4.02544078,2484.2,2484.1,16.367]
[1747681497830,4.02516247,2484.4,2484.1,16.367]
[1747681498031,4.02527875,2484.3,2484.2,8.0]
[1747681498267,4.02551847,2484.2,2484.0,1.59245092]
[1747681498473,4.02537524,2484.3,2484.2,8.367]
[1747681499829,4.02537524,2484.3,2484.2,16.367]
[1747681500236,4.02519096,2484.4,2484.2,16.367]
[1747681500462,4.02527875,2484.3,2484.2,16.367]
[1747681501338,4.02458933,2484.8,2484.2,16.367]
[1747681501545,4.02504741,2484.5,2484.2,16.367]
[1747681501797,0.1,2484.9,2484.2,16.367]
[1747681501798,4.02479842,2484.6,2484.2,16.367]
[1747681502138,4.02497344,2484.5,2484.2,16.367]
[1747681502343,4.02484011,2484.6,2484.4,0.7669]
[1747681502557,4.02484011,2484.6,2484.5,17.38]
[1747681503245,4.85694011,2484.6,2484.5,17.38]
[1747681503438,4.85694011,2484.6,2484.5,25.747]
[1747681505397,4.85694011,2484.6,2484.5,17.38]
[1747681505567,4.85694011,2484.6,2483.1,4.32437497]
[1747681505568,4.02608905,2483.8,2483.7,17.379]
[1747681505768,4.02608905,2483.8,2483.7,25.746]
[1747681508502,4.02600915,2483.9,2483.7,25.746]
[1747681509106,5.28347649,2484.5,2483.8,8.0]
[1747681509310,4.02554999,2484.2,2483.9,0.809]
[1747681509513,4.02533164,2484.3,2484.0,0.8809]
[1747681510199,4.02545658,2484.2,2484.0,0.8809]
[1747681510409,4.02560283,2484.1,2484.0,0.8809]
[1747681510794,0.792,2484.5,2484.0,0.8809]
[1747681511120,4.02550777,2484.2,2484.0,0.8809]
[1747681511321,4.02537063,2484.3,2484.0,0.8809]
[1747681511627,4.0252529,2484.4,2484.0,0.8809]
[1747681511628,4.02520168,2484.4,2484.0,0.8809]
[1747681511829,4.02512534,2484.4,2484.1,0.5715752]
[1747681512127,4.02512534,2484.4,2484.3,8.0]
[1747681512338,4.02499857,2484.5,2484.3,8.0]
[1747681512623,4.02511672,2484.4,2484.3,8.0]
[1747681513047,4.02544078,2484.2,2484.1,0.5715752]
[1747681513349,4.02544078,2484.2,2484.1,8.367]
[1747681514121,4.02608905,2483.8,2483.7,25.379]
[1747681514411,4.02608905,2483.8,2483.7,25.739]
[1747681514641,4.02625115,2483.7,2483.6,8.36]
[1747681514824,4.02663279,2483.5,2483.2,0.8034]
[1747681515026,4.02663279,2483.5,2483.3,10.17824]
[1747681515227,4.02673753,2483.4,2483.3,10.17824]
[1747681515428,4.02632331,2483.7,2483.3,10.17824]
[1747681515625,0.814,2483.9,2483.3,10.17824]
[1747681515919,4.02673753,2483.4,2483.3,10.17824]
[1747681516110,4.02673753,2483.4,2483.3,1.81824]
[1747681516311,4.02667396,2483.5,2483.3,10.17824]
[1747681516524,4.02667396,2483.5,2483.4,1.017824]
[1747681516926,0.814,2483.9,2483.4,1.017824]
[1747681517451,4.02645137,2483.6,2483.4,1.017824]
[1747681518549,4.02657539,2483.5,2483.4,1.017824]
[1747681518750,4.02649701,2483.6,2483.4,1.017824]
[1747681518949,4.02650345,2483.6,2483.5,1.1196064]
[1747681519254,4.02673753,2483.4,2483.3,10.17824]
[1747681520258,4.02673753,2483.4,2483.3,8.36]
[1747681520958,4.02706185,2483.2,2483.1,17.379]
[1747681521159,4.02706185,2483.2,2483.1,25.74]
[1747681521828,4.02706185,2483.2,2483.1,17.379]
[1747681522026,4.02706185,2483.2,2483.1,25.74]
[1747681523050,4.02706185,2483.2,2483.1,17.379]
[1747681523358,4.91132016,2483.2,2483.1,25.74]
[1747681523559,4.02706185,2483.2,2483.1,25.74]
[1747681529079,4.02696527,2483.3,2483.1,25.74]
[1747681529258,4.02683322,2483.4,2483.1,25.74]
[1747681529465,4.02706185,2483.2,2483.1,25.74]
[1747681531467,4.02738622,2483.0,2482.8,8.362]
[1747681531666,4.80052901,2483.3,2482.9,8.362]
[1747681531875,4.80052901,2483.3,2482.3,22.2045652]
[1747681531876,4.02722403,2483.1,2483.0,8.362]
[1747681532164,4.02773089,2482.8,2482.4,4.02827332]
[1747681532366,4.02773089,2482.8,2482.5,10.58243733]
[1747681532566,0.7736,2483.3,2482.5,10.58243733]
[1747681532567,4.02794904,2482.7,2482.5,10.58243733]
[1747681532938,4.80066131,2483.3,2482.5,10.58243733]
[1747681533165,4.02734203,2483.1,2482.6,5.48903559]
[1747681533371,4.02739308,2483.0,2482.6,5.48903559]
[1747681533671,4.02694136,2483.3,2482.9,4.02753334]
[1747681533966,4.02694899,2483.3,2483.0,8.40326902]
[1747681534335,4.02694899,2483.3,2483.0,8.363]
[1747681534670,4.02706084,2483.3,2483.1,0.8363]
[1747681534872,0.7736,2483.7,2483.2,17.385]
[1747681535072,4.02689968,2483.3,2483.2,17.385]
[1747681535443,4.02689968,2483.3,2483.2,25.748]
[1747681538187,4.02665292,2483.5,2483.2,42.317393]
[1747681538487,4.02665292,2483.5,2483.3,4.0981927]
[1747681538683,4.02673753,2483.4,2483.3,4.0981927]
[1747681539490,4.02689968,2483.3,2483.2,25.748]
[1747681540550,4.02683701,2483.4,2483.2,25.748]
[1747681540773,4.02661566,2483.5,2483.2,25.748]
[1747681540973,4.02661566,2483.5,2483.2,26.5381]
[1747681541169,0.7636,2483.8,2483.2,26.5381]
[1747681541337,4.02689771,2483.4,2483.3,2.65381]
[1747681541740,4.02666472,2483.5,2483.3,2.65381]
[1747681541941,4.02646288,2483.6,2483.3,2.55381]
[1747681542162,0.7636,2483.8,2483.3,2.55381]
[1747681542368,4.02673753,2483.4,2483.2,26.5381]
[1747681542777,4.02689968,2483.3,2483.2,26.5381]
[1747681542982,4.02683287,2483.4,2483.2,26.5381]
[1747681543168,4.02689968,2483.3,2483.2,26.5381]
[1747681543346,4.02682776,2483.4,2483.2,26.5381]
[1747681543545,4.02689057,2483.4,2483.2,26.5381]
[1747681543746,4.02687186,2483.4,2483.2,26.5381]
[1747681543978,4.02687186,2483.4,2483.2,29.19191]
[1747681544405,4.02689968,2483.3,2483.2,29.19191]
[1747681544720,4.02689968,2483.3,2483.2,25.748]
[1747681546614,4.84339968,2483.3,2483.2,25.738]
[1747681551376,4.02689968,2483.3,2483.2,25.738]
[1747681552291,4.02689968,2483.3,2483.2,25.739]
[1747681554521,4.02689968,2483.3,2483.2,28.3129]
[1747681554692,4.026803,2483.4,2483.2,29.1198]
[1747681555026,4.02689968,2483.3,2483.2,29.1198]
[1747681555193,4.02689968,2483.3,2483.2,26.5459]
[1747681556910,4.02658167,2483.5,2483.2,26.5459]
[1747681558229,4.0265027,2483.6,2483.2,30.57294203]
[1747681558409,4.02642524,2483.6,2483.2,30.57292914]
[1747681558592,4.02619486,2483.8,2483.3,3.05729291]
[1747681558799,1.26530715,2484.4,2483.5,4.84495512]
[1747681559003,4.0258745,2484.0,2483.5,4.84501939]
[1747681559330,4.02527875,2484.3,2483.7,4.02624523]
[1747681559540,0.46640715,2484.4,2483.9,0.8185]
[1747681559743,0.46640715,2484.4,2484.0,4.02567199]
[1747681560050,4.02495471,2484.5,2484.1,17.384]
[1747681560232,4.02540335,2484.3,2484.1,17.384]
[1747681560406,4.02540335,2484.3,2484.1,20.00425]
[1747681560603,4.02514895,2484.4,2484.1,20.00425]
[1747681560912,4.02504806,2484.5,2484.1,20.00425]
[1747681561442,4.02504806,2484.5,2484.1,20.30453244]
[1747681561736,0.1,2484.9,2484.2,8.0]
[1747681562053,0.1,2484.9,2484.4,4.02508839]
[1747681562259,0.1,2484.9,2484.7,4.02448868]
[1747681562453,0.1,2484.9,2484.8,9.1715]
[1747681564952,0.1,2484.9,2484.8,13.19596877]
[1747681565251,0.1,2484.9,2484.8,43.40432765]
[1747681565404,0.1,2484.9,2484.8,33.54161965]
[1747681565595,0.1,2484.9,2484.8,29.85398965]
[1747681566213,0.1,2484.9,2484.8,25.01305365]
[1747681567002,0.1,2484.9,2484.8,10.49109688]
[1747681568951,4.12430681,2484.9,2484.8,9.66959688]
[1747681569250,4.12430681,2484.9,2484.8,8.35]
[1747681569947,4.84951496,2484.8,2484.1,20.30453244]
[1747681570134,4.02495609,2484.5,2484.2,8.35]
[1747681570447,4.1243702,2484.9,2484.3,22.87498624]
[1747681570649,4.1243702,2484.9,2484.4,4.81909582]
[1747681570650,4.02456682,2484.8,2484.4,4.81909582]
[1747681571012,0.1,2484.9,2484.5,4.02484695]
[1747681571562,0.1,2484.9,2484.8,4.02446877]
[1747681571740,0.1,2484.9,2484.8,40.79412277]
[1747681571939,0.1,2484.9,2484.8,34.13989247]
[1747681572253,0.1,2484.9,2484.8,12.4481927]
[1747681572453,0.097624,2484.9,2484.8,8.35]
[1747681572818,4.12200465,2484.9,2484.8,8.349]
[1747681573019,0.097624,2484.9,2484.7,0.794]
[1747681573215,0.1,2485.9,2485.0,0.8184]
[1747681573521,0.1,2485.9,2485.7,4.84125402]
[1747681573726,0.1,2485.9,2485.8,13.2582818]
[1747681574135,0.1,2485.9,2485.8,27.7120628]
[1747681574340,0.1,2485.9,2485.8,36.0654078]
[1747681574649,0.56640715,2486.9,2486.3,0.7731]
[1747681574847,4.02124401,2486.8,2486.4,25.711]
[1747681575039,4.5875562,2486.9,2486.5,3.05060313]
[1747681575548,0.56640715,2486.9,2486.5,3.05060313]
[1747681575709,4.5875861,2486.9,2486.5,3.05060313]
[1747681575910,4.02171727,2486.5,2486.4,17.376]
[1747681576123,4.02171727,2486.5,2486.4,25.71]
[1747681576529,4.02160182,2486.6,2486.4,25.71]
[1747681576952,4.02171727,2486.5,2486.4,26.01605966]
[1747681577137,4.02162206,2486.6,2486.4,26.01605966]
[1747681577852,4.02171727,2486.5,2486.4,26.01605966]
[1747681578218,4.02171727,2486.5,2486.4,26.01405966]
[1747681579845,0.1,2486.9,2486.4,28.61546563]
[1747681580161,0.1,2486.9,2486.5,4.79547865]
[1747681580321,0.1,2486.9,2486.6,4.02155553]
[1747681580653,0.1,2486.9,2486.6,31.363663]
[1747681580852,0.1,2486.9,2486.8,4.0212321]
[1747681581152,0.1,2486.9,2486.8,7.96187441]
[1747681581354,0.1,2486.9,2486.8,24.06375541]
[1747681581534,0.1,2486.9,2486.8,20.04252331]
[1747681582255,0.1,2486.9,2486.5,8.7738]
[1747681582461,4.1210704,2486.9,2486.8,8.331]
[1747681582762,4.02155553,2486.6,2486.5,0.7738]
[1747681582921,4.02155553,2486.6,2486.5,9.1048]
[1747681583116,4.02148338,2486.7,2486.5,9.1048]
[1747681583329,0.1,2486.9,2486.5,3.73277806]
[1747681583545,0.1,2486.9,2486.6,12.48355]
[1747681583746,0.1,2486.9,2486.7,3.9122]
[1747681584561,0.1,2486.9,2486.8,12.0212321]
[1747681584764,0.1,2486.9,2486.8,44.3656461]
[1747681584963,0.1,2486.9,2486.8,43.2567698]
[1747681585564,4.01914124,2488.1,2486.8,43.2567698]
[1747681585565,0.794,2488.3,2486.8,38.4045377]
[1747681585780,4.02005146,2487.6,2487.0,4.02078444]
[1747681585946,4.02005146,2487.6,2487.1,22.463212]
[1747681586279,4.01968862,2487.8,2487.3,8.0]
[1747681586438,4.01968862,2487.8,2487.4,17.364]
[1747681586640,4.0201005,2487.5,2487.4,25.364]
[1747681586881,4.01994136,2487.6,2487.4,19.524108]
[1747681587045,4.01994136,2487.6,2487.5,4.390008]
[1747681587383,4.01993889,2487.6,2487.5,2.1754008]
[1747681587755,4.01986067,2487.7,2487.5,6.2695668]
[1747681587955,4.01986067,2487.7,2487.6,8.328]
[1747681588992,4.0196654,2487.8,2487.6,8.328]
[1747681589191,0.1,2487.9,2487.6,11.19766008]
[1747681589500,0.1,2487.9,2487.7,12.0197104]
[1747681590103,0.1,2487.9,2487.7,8.0]
[1747681590401,4.01961572,2487.8,2487.7,8.0]
[1747681590574,4.01961572,2487.8,2487.7,17.41396601]
[1747681591009,0.1,2487.9,2487.7,17.41396601]
[1747681591203,0.1,2487.9,2487.8,53.99260872]
[1747681591404,0.1,2487.9,2487.8,23.099089]
[1747681591602,0.1,2487.9,2487.8,16.595621]
[1747681591767,0.1,2487.9,2487.8,20.19118532]
[1747681591969,0.1,2487.9,2487.8,18.24198232]
[1747681592780,0.1,2487.9,2487.8,15.89198232]
[1747681592985,0.1,2487.9,2487.8,19.91159804]
[1747681593216,0.09644588,2487.9,2487.8,19.91159804]
[1747681593768,4.01818126,2488.7,2487.9,8.0]
[1747681594090,4.01818126,2488.7,2487.8,19.13019804]
[1747681594091,4.01816462,2488.7,2488.3,8.0]
[1747681594419,4.01816462,2488.7,2488.5,8.0]
[1747681594420,4.01816209,2488.7,2488.5,8.0]
[1747681594612,4.1179229,2488.9,2488.6,5.057884]
[1747681594798,0.1,2488.9,2488.6,0.7611]
[1747681595313,0.1,2488.9,2488.8,12.01800064]
[1747681595514,0.1,2488.9,2488.8,14.7071107]
[1747681595725,0.1,2488.9,2488.8,63.8963097]
[1747681595926,0.1,2488.9,2488.8,57.6886277]
[1747681596140,0.1,2489.9,2489.4,4.01688732]
[1747681596305,4.11626181,2489.9,2489.5,33.677]
[1747681596628,4.01638685,2489.8,2489.7,8.0]
[1747681596824,3.91638685,2489.8,2489.7,8.0]
[1747681597541,3.91638685,2489.8,2489.7,16.324]
[1747681599029,4.1162559,2489.9,2489.7,16.324]
[1747681599228,0.1,2489.9,2489.8,41.863524]
[1747681599406,0.1,2489.9,2489.8,30.53529985]
[1747681600235,0.1,2490.9,2490.4,4.0154013]